Cogmind - Beta 10.2 --- EXPLORER MODE // 2021.07.09 @ 21:53:57 Player: ConfiG Result: Destroyed by B-75 Beast with Magnetic Acceleration Cannon Performance ------------- Evolutions (4) 2000 Regions Visited (9) 1800 Robots Destroyed (68) 340 Value Destroyed (2631) 2631 Prototype IDs (0) 0 Alien Tech Used (0) 0 Bonus (849) 849 TOTAL SCORE: 7620 Bonus ------- Follower Combat Kills 149 Entered Garrisons 200 Used RIF Installer 500 Cogmind --------- Core Integrity 0/850 Matter 270/300 Energy 100/100 System Corruption 0% Temperature Cool (12) Movement Core (300) Ox5 Location -6/Lower Caves Parts ------- > --- POWER (2) -------- (None) > --- PROPULSION (2) --- (None) > --- UTILITY (9) ------ Large Storage Unit Targeting Computer > --- WEAPON (3) ------- (None) > --- INVENTORY (10) --- Small Storage Unit Medium Storage Unit Advanced Terrain Scanner Advanced Terrain Scan Processor Advanced Terrain Scan Processor Targeting Computer System Backup Module Peak State ------------ > --- POWER ------------ Improved Deuterium Engine Light Angular Momentum Engine > --- PROPULSION ------- Medium Treads Improved Medium Treads > --- UTILITY ---------- Large Storage Unit Sensor Array Signal Interpreter Targeting Computer Utility Shielding Improved Light Armor Plating Hacking Suite System Backup Module Recalibrator > --- WEAPON ----------- Advanced Assault Cannon Advanced Assault Cannon Advanced Assault Cannon > --- INVENTORY -------- Armored Treads Armored Treads Small Storage Unit Medium Storage Unit Advanced Terrain Scanner Advanced Terrain Scan Processor Advanced Terrain Scan Processor Targeting Computer Shock Absorption System [Rating: 51] Favorites ----------- Power Improved Deuterium Engine Engine Improved Deuterium Engine Propulsion Light Treads Treads Light Treads Utility Large Storage Unit Device Sensor Array Storage Large Storage Unit Processor Targeting Computer Hackware Hacking Suite Protection Utility Shielding Weapon Advanced Assault Cannon Energy Gun EM Pulse Gun Ballistic Gun Assault Rifle Ballistic Cannon Advanced Assault Cannon Launcher Grenade Launcher Build | -11 -10 -10 -9 -8 -8 -8 -7 -6 -6 ------- Run | Scr Mat Min Mat Mat Gar Mat Fac Fac Low Slots Evolved 9 | . 1 . 2 2 . . 2 2 . Power 1 | . . . 1 . . . . . . Propulsion . | . . . . . . . . . . Utility 7 | . 1 . 1 1 . . 2 2 . Weapon 1 | . . . . 1 . . . . . Parts Attached 52 | 8 2 . 10 3 1 9 3 11 5 Power 12 | 2 . . 5 . . 3 . 2 . Engine 12 | 2 . . 5 . . 3 . 2 . Core . | . . . . . . . . . . Reactor . | . . . . . . . . . . Propulsion 13 | 2 . . 2 . . 2 . 3 4 Treads 13 | 2 . . 2 . . 2 . 3 4 Leg . | . . . . . . . . . . Wheel . | . . . . . . . . . . Hover . | . . . . . . . . . . Flight . | . . . . . . . . . . Utility 15 | 2 2 . 1 1 1 1 2 4 1 Device 6 | . . . . . 1 . 2 2 1 Storage 2 | 1 1 . . . . . . . . Processor 2 | . . . 1 . . . . 1 . Hackware 1 | . . . . . . 1 . . . Protection 4 | 1 1 . . 1 . . . 1 . Artifact . | . . . . . . . . . . Weapon 12 | 2 . . 2 2 . 3 1 2 . Energy Gun 3 | 1 . . 1 . . 1 . . . Energy Cannon . | . . . . . . . . . . Ballistic Gun 2 | 1 . . . 1 . . . . . Ballistic Cannon 5 | . . . . . . 2 1 2 . Launcher 2 | . . . 1 1 . . . . . Special Weapon . | . . . . . . . . . . Impact Weapon . | . . . . . . . . . . Slashing Weapon . | . . . . . . . . . . Piercing Weapon . | . . . . . . . . . . Special Melee Weapon . | . . . . . . . . . . Unidentified Prototypes . | . . . . . . . . . . Parts Lost 27 | . . . . 1 2 5 . 4 15 Power 5 | . . . . . 1 1 . 1 2 Propulsion 5 | . . . . . 1 . . . 4 Utility 10 | . . . . 1 . . . 2 7 Weapon 7 | . . . . . . 4 . 1 2 Highest Loss Streak 10 | . . . . 1 1 4 . 2 10 Average Slot Usage (%) 95 | . 100 100 99 97 92 90 96 96 63 Engine 12 | . 12 12 20 16 13 10 14 11 6 Treads 16 | . 25 25 20 16 11 15 14 12 8 Device 9 | . . . . . 8 8 18 20 12 Storage 8 | . 12 12 10 8 8 8 7 6 6 Processor 7 | . . . 9 8 8 8 7 12 11 Hackware 2 | . . . . . . 2 7 6 5 Protection 15 | . 25 25 20 22 16 13 7 9 8 Energy Gun 4 | . 12 12 9 4 . . . . . Ballistic Gun 6 | . 12 12 10 16 16 12 . . . Ballistic Cannon 7 | . . . . . . 2 21 16 4 Launcher 1 | . . . . 3 8 6 . . . Naked Turns . | . . . . . . . . . . Heaviest Build 65 | 20 29 29 38 41 39 52 61 65 58 Greatest Support 58 | 40 40 40 40 40 40 42 42 58 58 Greatest Overweight (x) 1 | . . . . 1 1 1 1 1 1 Average Overweight (x) . | . . . . . . . 1 . . Largest Inventory Capacity 10 | 8 10 10 10 10 10 10 10 10 10 Average Capacity 9 | 7 9 10 10 10 10 10 10 10 10 Most Carried 10 | 7 10 10 10 9 7 10 9 10 9 Average Carried 8 | 4 8 9 9 8 7 7 6 8 8 Final Capacity 10 | 8 10 10 10 10 10 10 10 10 10 Final Carried 10 | 5 10 10 10 8 7 10 9 9 7 Class Distribution -------------------- 59% | Hacker-Mutant 15% | Hacker-Skirmisher 13% | Hacker-Gunner 10% | Hacker-Tank Dominant Class ---------------- Hacker-Mutant | -10/Materials Hacker-Mutant | -10/Mines Hacker-Mutant | -9/Materials Hacker-Tank | -8/Materials Hacker-Gunner | -8/Garrison Hacker-Gunner | -8/Materials Hacker-Gunner | -7/Factory Hacker-Skirmisher | -6/Factory Hacker-Mutant | -6/Lower Caves Resources | -11 -10 -10 -9 -8 -8 -8 -7 -6 -6 ----------- Run | Scr Mat Min Mat Mat Gar Mat Fac Fac Low Matter Collected 1772 | 249 51 45 60 209 113 193 124 728 . Remotely . | . . . . . . . . . . Salvage Created 2073 | . 145 . 266 323 387 313 56 583 . Parts 115 | . 10 . 19 11 17 22 5 31 . Haulers Intercepted . | . . . . . . . . . . Recyclers Shooed . | . . . . . . . . . . Parts Field Recycled . | . . . . . . . . . . Retrieved Matter . | . . . . . . . . . . Parts Self-Destructed . | . . . . . . . . . . Prevented . | . . . . . . . . . . Kills | -11 -10 -10 -9 -8 -8 -8 -7 -6 -6 ------- Run | Scr Mat Min Mat Mat Gar Mat Fac Fac Low Combat Hostiles Destroyed 52 | . 5 . 4 5 9 8 3 18 . Melee 1 | . . . . . . . . 1 . Guns 20 | . 4 . 3 3 6 4 . . . Cannons 21 | . . . . . . 2 3 16 . AOE 9 | . 1 . 1 2 3 2 . . . Classes Destroyed 11 | . 2 . 3 3 . 1 . 2 . Worker 1 | . . . . 1 . . . . . Builder 2 | . . . . . . 2 . . . Operator 2 | . . . 1 . . 1 . . . Watcher 11 | . . . 2 3 . 2 . 4 . Swarmer 9 | . 2 . . . . . 2 5 . Grunt 22 | . 3 . 2 2 7 5 . 3 . Brawler 3 | . . . . 1 . 1 . 1 . Duelist 3 | . . . . 1 2 . . . . Sentry 9 | . . . 2 1 . 2 1 3 . Hunter 1 | . . . . . . . . 1 . Programmer 5 | . . . . . . . . 5 . Best Kill Streak 8 | . 3 . 3 8 3 8 2 5 . Combat Bots Only 5 | . 3 . 2 5 3 5 2 5 . Max Kills in Single Turn 3 | . 1 . 1 2 1 3 1 1 . Gunslinging . | . . . . . . . . . . Exploded 1 | . 1 . 1 1 1 1 . . . Melee 1 | . . . . . . . . 1 . Uniques/NPCs Destroyed . | . . . . . . . . . . Combat | -11 -10 -10 -9 -8 -8 -8 -7 -6 -6 -------- Run | Scr Mat Min Mat Mat Gar Mat Fac Fac Low Damage Taken 4598 | . 173 . 86 242 454 524 115 1118 1886 Core 1132 | . 25 . 29 32 79 107 4 109 747 Absorbed by Shields . | . . . . . . . . . . Core Remaining (%) 88 | 100 . 90 92 . . 60 99 . . Volleys Fired 162 | . 15 . 19 16 27 32 5 41 7 Largest 3 | . 2 . 2 3 3 3 3 3 2 Hottest 144 | . 60 . 60 80 70 96 144 144 96 Shots Fired 367 | . 30 . 37 38 58 72 11 109 12 Gun 197 | . 30 . 35 34 54 44 . . . Cannon 143 | . . . . . . 11 11 109 12 Launcher 27 | . . . 2 4 4 17 . . . Special . | . . . . . . . . . . Kinetic 303 | . 15 . 19 32 54 51 11 109 12 Thermal . | . . . . . . . . . . Explosive 27 | . . . 2 4 4 17 . . . Electromagnetic 37 | . 15 . 16 2 . 4 . . . Robot Hit Streak 28 | . 17 . 15 26 26 26 16 28 15 Robot Miss Streak 2 | . 1 . 1 2 1 1 1 2 . Penetration Max . | . . . . . . . . . . Secondary Targets 6 | . . . . 3 3 . . . . Max Gunslinging Chain 1 | . . . . 1 1 . . . . Shots Hit Robots 285 | . 25 . 29 31 50 56 10 72 12 Core Hits 158 | . 8 . 14 18 28 32 4 33 21 Critical Hits 4 | . . . . . 1 1 1 1 . Critical Kills 1 | . . . . . 1 . . . . Critical Parts Destroyed 2 | . . . . . . 1 . 1 . Melee Attacks . | . . . . . . . . . . Impact . | . . . . . . . . . . Slashing . | . . . . . . . . . . Piercing . | . . . . . . . . . . Sneak Attacks . | . . . . . . . . . . Combat Hostiles . | . . . . . . . . . . Follow-up Attacks . | . . . . . . . . . . Damage Inflicted 6202 | . 394 . 476 717 657 1294 304 1927 433 Guns 1873 | . 332 . 382 308 471 380 . . . Cannons 2775 | . . . . . . 264 304 1882 325 Explosions 1401 | . 62 . 94 409 186 650 . . . Melee . | . . . . . . . . . . Ramming 153 | . . . . . . . . 45 108 Kinetic 4169 | . 143 . 160 273 471 611 304 1882 325 Thermal 278 | . 62 . . 216 . . . . . Explosive 1123 | . . . 94 193 186 650 . . . Electromagnetic 479 | . 189 . 222 35 . 33 . . . Impact . | . . . . . . . . . . Slashing . | . . . . . . . . . . Piercing . | . . . . . . . . . . Highest Corruption 1 | . . . . . . . . 1 1 Average Corruption 1 | . . . . . . . . 1 1 Corruption Purged 4 | . . . . . . . . 3 1 Effects 4 | . . . . . . . . 4 . Message Errors 1 | . . . . . . . . 1 . Data Loss (minor) 1 | . . . . . . . . 1 . Targeting Errors 2 | . . . . . . . . 2 . Overload Shots . | . . . . . . . . . . Overflow Damage 157 | . . . . 101 . 14 . 42 . Projectiles 45 | . . . . . . 3 . 42 . Explosions 112 | . . . . 101 . 11 . . . Melee . | . . . . . . . . . . Knockbacks 17 | . . . . . . 1 . 16 . Impact . | . . . . . . . . . . Kinetic 15 | . . . . . . 1 . 14 . Secondary 2 | . . . . . . . . 2 . Self-Inflicted Damage 111 | . 24 . 7 22 35 23 . . . Shots 8 | . 1 . 1 2 2 2 . . . Rammed 75 | . . . . . . . . 10 65 Targets Rammed 76 | . . . . . . . . 11 65 Kicked . | . . . . . . . . . . Crushed 1 | . . . . . . . . 1 . Highest Temperature 282 | . 78 . 72 39 24 126 282 250 135 Average Temperature 49 | . 29 . 21 18 7 31 125 74 70 Received Heat Transfer 1545 | . 69 . 51 99 243 351 48 276 408 Effects 3 | . . . . . . . 3 . . Interference 3 | . . . . . . . 3 . . Siege Activations . | . . . . . . . . . . Robots Corrupted . | . . . . . . . . . . Combat Hostiles . | . . . . . . . . . . Parts Fried 1 | . . . 1 . . . . . . Impact Corruptions 1 | . . . . . . . . 1 . Robots Melted . | . . . . . . . . . . Combat Hostiles . | . . . . . . . . . . Parts Melted . | . . . . . . . . . . Heat Transferred 250 | . 100 . . 150 . . . . . Parts Sabotaged . | . . . . . . . . . . Parts Stolen . | . . . . . . . . . . Parts Stripped . | . . . . . . . . . . Power Chain Reactions 1 | . 1 . . . . . . . . Missiles Intercepted . | . . . . . . . . . . Alert | -11 -10 -10 -9 -8 -8 -8 -7 -6 -6 ------- Run | Scr Mat Min Mat Mat Gar Mat Fac Fac Low Peak Influence 388 | . 193 53 261 189 302 388 123 274 . Initial 107 | . . 53 . 37 92 107 28 43 . Average 80 | . 94 20 79 83 184 214 87 65 . Maximum Alert Level 1 | . . . 1 . 1 1 . 1 . Low Security (%) 86 | 100 100 100 84 100 46 41 100 89 . Level 1 13 | . . . 15 . 53 58 . 10 . Level 2 . | . . . . . . . . . . Level 3 . | . . . . . . . . . . Level 4 . | . . . . . . . . . . Level 5 . | . . . . . . . . . . High Security . | . . . . . . . . . . Max Security . | . . . . . . . . . . Squads Dispatched 13 | . . . 2 . . 4 . 7 . Investigation . | . . . . . . . . . . Extermination 5 | . . . . . . . . 5 . Reinforcement 8 | . . . 2 . . 4 . 2 . Assault . | . . . . . . . . . . Garrison . | . . . . . . . . . . Intercept . | . . . . . . . . . . Construction Impeded 1 | . . . . . . 1 . . . Haulers Reinforced 1 | . . . . . . . . 1 . Stealth | -11 -10 -10 -9 -8 -8 -8 -7 -6 -6 --------- Run | Scr Mat Min Mat Mat Gar Mat Fac Fac Low Distress Signals 7 | . . . 2 1 . 2 . 2 . Communications Jammed . | . . . . . . . . . . Distress Signals . | . . . . . . . . . . Times Spotted 95 | . 10 . 20 9 9 14 4 28 1 Peak Tracking Total 6 | . 3 . 3 4 3 5 2 6 1 Tactical Retreats 3 | . 2 . . . . . . 1 . Traps | -11 -10 -10 -9 -8 -8 -8 -7 -6 -6 ------- Run | Scr Mat Min Mat Mat Gar Mat Fac Fac Low Traps Triggered 8 | . 1 . . . 1 . . 6 . Indirectly . | . . . . . . . . . . Trap Hack Attempts . | . . . . . . . . . . Triggered . | . . . . . . . . . . Disarmed . | . . . . . . . . . . Reprogrammed . | . . . . . . . . . . Reused . | . . . . . . . . . . Traps Extracted . | . . . . . . . . . . Installed . | . . . . . . . . . . Triggered . | . . . . . . . . . . Machines | -11 -10 -10 -9 -8 -8 -8 -7 -6 -6 ---------- Run | Scr Mat Min Mat Mat Gar Mat Fac Fac Low Machines Disabled 7 | . . . 2 3 . . . 2 . Max in Single Turn 3 | . . . 1 3 . . . 1 . Machines Sabotaged . | . . . . . . . . . . Garrisons Compromised . | . . . . . . . . . . Overloaded Fab Kills . | . . . . . . . . . . Fab Network Shutdowns . | . . . . . . . . . . Hacking | -11 -10 -10 -9 -8 -8 -8 -7 -6 -6 --------- Run | Scr Mat Min Mat Mat Gar Mat Fac Fac Low Machines Accessed 2 | . 1 . . 1 . . . . . Terminals 1 | . 1 . . . . . . . . Fabricators . | . . . . . . . . . . Repair Stations . | . . . . . . . . . . Recycling Units . | . . . . . . . . . . Scanalyzers . | . . . . . . . . . . Garrison Access 1 | . . . . 1 . . . . . Total Hacks 4 | . 3 . . 1 . . . . . Successful 3 | . 2 . . 1 . . . . . Failed 1 | . 1 . . . . . . . . Catastrophic . | . . . . . . . . . . Database Lockouts . | . . . . . . . . . . Manual . | . . . . . . . . . . Terminals 3 | . 3 . . . . . . . . Fabricators . | . . . . . . . . . . Repair Stations . | . . . . . . . . . . Recycling Units . | . . . . . . . . . . Scanalyzers . | . . . . . . . . . . Garrison Access 1 | . . . . 1 . . . . . Terminal Hacks 2 | . 2 . . . . . . . . Dispatch Records 1 | . 1 . . . . . . . . Recall Assault 1 | . 1 . . . . . . . . Fabricator Hacks . | . . . . . . . . . . Repair Station Hacks . | . . . . . . . . . . Recycling Unit Hacks . | . . . . . . . . . . Scanalyzer . | . . . . . . . . . . Garrison Access Hacks 1 | . . . . 1 . . . . . Unlock Access 1 | . . . . 1 . . . . . Unauthorized Hacks . | . . . . . . . . . . Terminals . | . . . . . . . . . . Fabricators . | . . . . . . . . . . Repair Stations . | . . . . . . . . . . Recycling Units . | . . . . . . . . . . Scanalyzers . | . . . . . . . . . . Garrison Access . | . . . . . . . . . . Data Cores Recovered . | . . . . . . . . . . Used . | . . . . . . . . . . Hacking Detections 1 | . . . . 1 . . . . . Full Trace Events . | . . . . . . . . . . Feedback Events . | . . . . . . . . . . Feedback Blocked . | . . . . . . . . . . Robot Schematics Acquired . | . . . . . . . . . . Robots Built . | . . . . . . . . . . Matter . | . . . . . . . . . . Time . | . . . . . . . . . . Total Robot Build Rating . | . . . . . . . . . . Part Schematics Acquired . | . . . . . . . . . . Parts Built . | . . . . . . . . . . Matter . | . . . . . . . . . . Time . | . . . . . . . . . . Total Part Build Rating . | . . . . . . . . . . Parts Repaired . | . . . . . . . . . . Time . | . . . . . . . . . . Parts Recycled . | . . . . . . . . . . Recycled Matter . | . . . . . . . . . . Retrieved Matter . | . . . . . . . . . . Retrieved Components . | . . . . . . . . . . Parts Scanalyzed . | . . . . . . . . . . Part Schematics Acquired . | . . . . . . . . . . Parts Damaged . | . . . . . . . . . . Bothacking | -11 -10 -10 -9 -8 -8 -8 -7 -6 -6 ------------ Run | Scr Mat Min Mat Mat Gar Mat Fac Fac Low Used RIF Installer 1 | . . . . . 1 . . . . Robots Hacked . | . . . . . . . . . . Non-combat . | . . . . . . . . . . Combat . | . . . . . . . . . . Robot Hacks Applied . | . . . . . . . . . . Relay Couplers Released . | . . . . . . . . . . Robots Rewired . | . . . . . . . . . . Allies Hacked . | . . . . . . . . . . Hacks Repelled . | . . . . . . . . . . Allies | -11 -10 -10 -9 -8 -8 -8 -7 -6 -6 -------- Run | Scr Mat Min Mat Mat Gar Mat Fac Fac Low Total Allies 2 | . . 2 . . . . . . . Largest Group 2 | . . 2 1 1 . . . . . Highest-Rated Group 39 | . . 39 31 31 . . . . . Highest-Rated Ally 31 | . . 31 31 31 . . . . . Total Orders . | . . . . . . . . . . Ally Attacks 26 | . . . 22 4 . . . . . Total Damage 350 | . . . 286 64 . . . . . Kills 7 | . . . 7 . . . . . . Allies Corrupted . | . . . . . . . . . . Allies Melted . | . . . . . . . . . . Intel | -11 -10 -10 -9 -8 -8 -8 -7 -6 -6 ------- Run | Scr Mat Min Mat Mat Gar Mat Fac Fac Low Robot Analysis Total . | . . . . . . . . . . Derelict Logs Recovered 1 | . . 1 . . . . . . . Drone Launches . | . . . . . . . . . . Drone Recoveries . | . . . . . . . . . . Exploration | -11 -10 -10 -9 -8 -8 -8 -7 -6 -6 ------------- Run | Scr Mat Min Mat Mat Gar Mat Fac Fac Low Turns Passed 5545 | 96 299 1053 587 192 337 453 340 1891 297 Spaces Moved 2713 | 55 147 657 302 88 153 150 179 921 61 Core 9 | 9 . . . . . . . . . Treads 2704 | 46 147 657 302 88 153 150 179 921 61 Legs . | . . . . . . . . . . Wheels . | . . . . . . . . . . Hover . | . . . . . . . . . . Flight . | . . . . . . . . . . Fastest Speed 50 | 50 160 160 160 160 160 152 177 160 160 Average Speed 166 | 142 160 160 160 161 170 159 177 175 163 Slowest Speed 190 | 160 160 160 160 180 180 180 177 190 180 Overloaded Moves . | . . . . . . . . . . Propulsion Burnouts . | . . . . . . . . . . Robots Hopped . | . . . . . . . . . . Cave-ins Triggered . | . . . . . . . . . . Exploration Rate (%) 30 | 5 41 99 36 15 39 23 7 33 7 Regions Visited 9 Branch Regions 2 Pre-discovered Areas 1 | . . 1 . . . . . . . Known Exits Taken 8 | 1 1 1 1 1 . 1 1 1 . Unknown Exits Taken . | . . . . . . . . . . Scrap Searched 2 | . . 2 . . . . . . . Spaces Dug . | . . . . . . . . . . Terrain Destroyed 137 | . 2 . 15 13 10 81 . 16 . Melee . | . . . . . . . . . . Projectile 17 | . . . . . . 1 . 16 . AOE 120 | . 2 . 15 13 10 80 . . . Terrain Rammed . | . . . . . . . . . . Walls Destroyed . | . . . . . . . . . . Machines Disabled . | . . . . . . . . . . Actions | -11 -10 -10 -9 -8 -8 -8 -7 -6 -6 --------- Run | Scr Mat Min Mat Mat Gar Mat Fac Fac Low Total 3338 | 72 180 660 369 107 181 306 196 1099 168 Wait 280 | . 11 . 28 . . 107 . 104 30 Move 2704 | 54 146 656 301 88 151 149 178 920 61 Hop . | . . . . . . . . . . Pick Up 44 | 10 6 2 5 . . 9 6 6 . Fast Attach 3 | 2 . . . . . . . 1 . Attach 28 | 5 1 . 2 2 1 6 3 6 2 Detach 2 | . . . . . . . . 2 . Swap 21 | 1 1 . 8 1 . 3 . 4 3 Drop 14 | . . 2 6 . . . 4 2 . Fire 162 | . 15 . 19 16 27 32 5 41 7 Melee . | . . . . . . . . . . Ram 24 | . . . . . . . . . 24 Kick . | . . . . . . . . . . Crush 52 | . . . . . . . . 11 41 Escape Stasis 4 | . . . . . 2 . . 2 . Rewire . | . . . . . . . . . . Trap . | . . . . . . . . . . Miscellaneous . | . . . . . . . . . . Route ------- -11/Scrapyard -10/Materials -10/Mines (discovered 2 exits: *Mat x2) -9/Materials -8/Materials -8/Garrison -8/Materials -7/Factory -6/Factory -6/Lower Caves History --------- Turn | Location | Event 18 | -11/Scrapyard | Identified exit to Materials 18 | -11/Scrapyard | Discovered exit to Materials (range 15) 97 | -11/Scrapyard | Entered Materials 97 | -10/Materials | Evolved 1 slot: Utility x1 304 | -10/Materials | Build established: Hacker-Mutant 361 | -10/Materials | Identified exit to Mines 361 | -10/Materials | Discovered exit to Mines (range 14) 396 | -10/Materials | Entered Mines 405 | -10/Mines | Met a Derelict bent on vengeance 554 | -10/Mines | Found a hidden stash of uninstalled traps 634 | -10/Mines | Identified exit to Materials 634 | -10/Mines | Discovered exit to Materials (range 13) 1063 | -10/Mines | Discovered exit to Materials (range 9) 1449 | -10/Mines | Entered Materials 1449 | -9/Materials | Accompanied by 1 ally 1449 | -9/Materials | Evolved 2 slots: Power x1, Utility x1 1454 | -9/Materials | Led the pair of lost Derelicts to an unsafe place 2029 | -9/Materials | Identified exit to Materials 2029 | -9/Materials | Discovered exit to Materials (range 5) 2036 | -9/Materials | Entered another Materials area 2036 | -8/Materials | Accompanied by 1 ally 2036 | -8/Materials | Evolved 2 slots: Utility x1, Weapon x1 2228 | -8/Materials | Identified exit to Garrison 2228 | -8/Materials | Entered Garrison 2237 | -8/Garrison | Installed Relay Interface Framework 2308 | -8/Garrison | Triggered checkpoint 2310 | -8/Garrison | Triggered checkpoint 2340 | -8/Garrison | Triggered checkpoint 2416 | -8/Garrison | Triggered checkpoint 2508 | -8/Garrison | Triggered checkpoint 2525 | -8/Garrison | Identified exit to Materials 2525 | -8/Garrison | Discovered exit to Materials (range 14) 2565 | -8/Garrison | Entered Materials 2960 | -8/Materials | Lost 4 parts (4w) 2980 | -8/Materials | Identified exit to Factory 2980 | -8/Materials | Discovered exit to Factory (range 13) 3018 | -8/Materials | Entered Factory 3018 | -7/Factory | Evolved 2 slots: Utility x2 3272 | -7/Factory | Identified exit to Factory 3272 | -7/Factory | Discovered exit to Factory (range 10) 3358 | -7/Factory | Entered another Factory area 3358 | -6/Factory | Evolved 2 slots: Utility x2 3848 | -6/Factory | Build established: Hacker-Skirmisher 4591 | -6/Factory | Build established: Hacker-Tank 5079 | -6/Factory | Build established: Hacker-Mutant 5241 | -6/Factory | Identified exit to Lower Caves 5241 | -6/Factory | Discovered exit to Lower Caves (range 6) 5249 | -6/Factory | Entered Lower Caves 5288 | -6/Lower Caves | Spotted B-75 Beast 5394 | -6/Lower Caves | Lost 5 parts (1p1n1u2w) 5486 | -6/Lower Caves | Core integrity fell below 50% 5531 | -6/Lower Caves | Core integrity fell below 20% 5538 | -6/Lower Caves | Lost 10 parts (1p3n6u) 5546 | -6/Lower Caves | Destroyed by B-75 Beast with Magnetic Acceleration Cannon Last Messages --------------- 05458_ Slammed into B-75 Beast. 05464_ Arm. Treads destroyed. 05465_ Slammed into B-75 Beast. 05480_ Med. Treads destroyed. 05481_ Slammed into B-75 Beast. 05484_ Sensor Array permanently disabled. 05484_ Destabilizing: Short circuit. 05487_ Slammed into B-75 Beast. 05491_ Signal Interpreter destroyed. 05491_ Broken Sensor Array destroyed. 05491_ Hacking Suite destroyed. 05493_ Slammed into B-75 Beast. 05499_ Destabilizing: System interference. 05499_ Targeting Computer temporarily disabled. 05502_ Slammed into B-75 Beast. 05507_ Imp. Transmission Jammer destroyed. 05508_ Slammed into B-75 Beast. 05517_ Targeting Computer permanently disabled. 05517_ Destabilizing: Short circuit. 05520_ Slammed into B-75 Beast. Map ----- +----------------------------------------------------+ | ?????????????????????????????????????????????????? | | ?????????????????????????????????????????????????? | | ?????????????????????????????????????????????????? | | ?????????????????????????????????????????????????? | | ?????????????????????????????????????????????????? | | ?????????????????????????????????????????????????? | | ?????????????????????????????????????????????????? | | ?????????????????????????????????????????????????? | | ??????????????????????????????????????????? ??? | | ?????????????????????????????????????????? ?? | | ?????????????????????????????## #???????# #?? | | ???????????????????????????## #?????## #?? | | ??????????????????????????# ????? ##? | | ?????????????????????????? ?????? #? | | ?????????????????????????? ??????? ?? | | ?????????????????????????? #??????? ??? | | ??????????????????????????? #???????# #??? | | ?????????????????????????# #????#### #### | | ?????????????????????????? #????# # | | ?????????????????????####??? #?????# # | | ????????????????????## #????# ##????# | | ????????????????????# ##???# ###### | | ????????????????????# ##### | | ???????????????????## BB | | ??????????????????## BB ### | | ??????????????????# @# # # #### | | ??????????????????# ;#### ## # #??## | | ?????????????????#;; ;#??## #???# | | ?????????????????#### ##???## ## ##???###### | | ????????????????????#; ##?????##########?????????? | | ????????????????????####?????????????????????????? | | ?????????????????????????????????????????????????? | | ?????????????????????????????????????????????????? | | ?????????????????????????????????????????????????? | | ?????????????????????????????????????????????????? | | ?????????????????????????????????????????????????? | | ?????????????????????????????????????????????????? | | ?????????????????????????????????????????????????? | | ?????????????????????????????????????????????????? | | ?????????????????????????????????????????????????? | | ?????????????????????????????????????????????????? | | ?????????????????????????????????????????????????? | | ?????????????????????????????????????????????????? | | ?????????????????????????????????????????????????? | | ?????????????????????????????????????????????????? | | ?????????????????????????????????????????????????? | | ?????????????????????????????????????????????????? | | | | | | | +----------------------------------------------------+ Best States ------------- Heat Dissipation 37 Energy Generation 29 Energy Capacity 480 Matter Stores 300 Matter Capacity 300 Sight Range 16 Robot Scan Range 10 Terrain Scan Density 10 Jamming Range 12 Armor Coverage 150 Resistance: KI 35 Resistance: TH 35 Resistance: EX 60 Resistance: EM 35 Resistance: I 35 Resistance: S 35 Resistance: P 35 Utility Shielding 33 Weapon Shielding 33 Evasion (%) 50 Targeting Accuracy 5 Recoil Reduction 2 Offensive Hacking 30 Item Schematics ----------------- None Robot Schematics ------------------ None Fabricated ------------ Nothing Alien Tech Used ----------------- None Achievements -------------- None Challenges ------------ None Game ------ Seed StormPhaseNetwork Manual? 0 Play Time 00:49:11 Cumulative 4.1 hours Start 2021.07.09 @ 20:58:39 End 2021.07.09 @ 21:53:57 Sessions 1 Manual Loads 0 Difficulty Explorer Special Mode None Game No. 4 Rogue 0 Adventurer 0 Explorer 4 Win Type - Total 0 Types 0/0/0/0/0/0/0/0/0 Lore% 8 Gallery% 11 Achievement% 11 Wizard Run 0 Options --------- ASCII 1 Keyboard 0 Movement Mouse Keybinds 0 Fullscreen 0 Font 10/Smallcaps Map View 83x54 Tactical HUD 1 Map Filters NONE Filters NONE Steam 1 RUN: b8cd891b-c10c-4f8a-8e1e-c6771ee9aa06